[Event "44th Chess Olympiad Open 2022"]
[Site "Chennai"]
[Date "2022.08.06"]
[Round "8.8"]
[White "Cruz, Cristhian"]
[Black "Sethuraman, S.P..."]
[Result "1/2-1/2"]
[WhiteElo "2579"]
[BlackElo "2623"]
[Annotator "TA"]
[PlyCount "117"]
[EventDate "2022.??.??"]
[TimeControl "60"]

{[%evp 11,117,34,38,12,11,0,0,0,0,0,6,4,0,-10,-13,-76,55,0,0,-16,-25,-23,0,12,
0,-96,-56,-92,-88,-86,-103,-243,-108,-118,-75,-53,-68,3,-50,-58,-69,-54,0,0,11,
7,2,-81,-39,-33,128,116,112,0,0,0,3,3,55,55,62,54,55,0,0,0,0,0,0,0,0,0,0,0,0,0,
0,0,0,0,0,-8,-8,-8,-8,-8,-8,-8,-8,-8,-8,-8,-8,-8,-8,-8,-8,-8,-8,-8,-8,-8,-8,-8,
-8,-8,-8,-8]} 1. d4 {[%emt 0:00:04]} Nf6 {[%emt 0:00:30]} 2. c4 {[%emt 0:00:31]
} e6 {[%emt 0:00:05]} 3. Nc3 {[%emt 0:00:44]} d5 {[%emt 0:00:06]} 4. cxd5 {
[%emt 0:00:29]} exd5 {[%emt 0:00:06]} 5. Bg5 {[%emt 0:00:17][%cal Yc1g5,Yg5h4,
Yh4g3]} Bb4 {[%emt 0:00:06]} 6. e3 {[%emt 0:01:57]} h6 {[%emt 0:00:05]} 7. Qa4+
{[%emt 0:04:18] D35: Queen's Gambit Declined: Exchange Variation.} Nc6 {
[%emt 0:00:35]} 8. Bh4 {[%emt 0:07:46]} g5 {[%emt 0:01:16]} 9. Bg3 {[%emt 0:00:
05]} Ne4 {[%emt 0:00:04]} 10. Bb5 {[%emt 0:01:00][%csl Yb4,Yc6]} Bxc3+ {
[%emt 0:13:29]} 11. bxc3 {[%emt 0:00:06]} Bd7 {[%emt 0:00:04] [#]} 12. Qc2 $146
{[%emt 0:11:03]} ({Predecessor:} 12. Qa3 h5 13. f3 Nxg3 14. hxg3 Qf6 15. Ne2
O-O-O 16. c4 dxc4 17. Bxc4 h4 18. gxh4 gxh4 {0-1 (41) Muradli,M (2503)
-Abdusattorov,N (2633) Sitges 2021}) 12... h5 {[%emt 0:08:25] ...h4 is the
strong threat.} 13. Ne2 {[%emt 0:11:28]} (13. f3 $11 {keeps the balance.} Nxg3
14. hxg3) 13... Qe7 {[%emt 0:07:35]} (13... h4 $17 14. Bxc6 Bxc6) 14. h4 {
[%emt 0:18:50]} ({Better is} 14. Bxc7 $14 Bf5 15. f3) 14... O-O-O $11 {[%emt 0:
00:00]} 15. hxg5 {[%emt 0:03:54]} Nxg3 {[%emt 0:09:00]} 16. Nxg3 {[%emt 0:00:
00]} Qxg5 {[%emt 0:01:20]} (16... h4 $5 {[%cal Rh4g3]} 17. Ne2 Qxg5 $11) 17.
Bxc6 {[%emt 0:05:13]} bxc6 {[%emt 0:00:44]} 18. Qa4 {[%emt 0:05:01]} (18. Rh2
$11) 18... Rde8 $17 {[%emt 0:10:06]} 19. Kd2 {[%emt 0:11:24] [#]} h4 $1 {
[%emt 0:05:04]} 20. Ne2 {[%emt 0:06:09]} Qxg2 {[%emt 0:01:18]} 21. Rhf1 {
[%emt 0:00:18]} (21. Qxa7 $2 Bf5 22. Qa6+ Kd7 $19) (21. Raf1 $17) 21... Qe4 {
[%emt 0:16:25]} (21... Qf3 $19 {is more deadly. Strongly threatening ...h3.}
22. Ng1 (22. Qxa7 $2 Bg4 $19) 22... Qg2) 22. Nf4 {[%emt 0:04:21]} Bf5 {[%emt 0:
00:00]} 23. Qxc6 {[%emt 0:01:50] [#]} Rh6 $1 {[%emt 0:10:39]} 24. Qa8+ {
[%emt 0:04:17]} (24. Qxh6 Qc2+ 25. Ke1 Qxc3+ 26. Kd1 Qxa1+ 27. Ke2 Bg4+ 28. f3
Qxa2+ 29. Kd1 Qb3+ 30. Kc1 Qxe3+ 31. Kb2 Qxd4+ 32. Kb1 Bf5+ 33. Ka2 Qc4+ 34.
Kb2 Qxf1) 24... Kd7 {[%emt 0:00:04]} 25. Qxd5+ {[%emt 0:00:05]} Qxd5 {[%emt 0:
00:00]} 26. Nxd5 {[%emt 0:00:02]} h3 {[%emt 0:03:56]} (26... Rb8 $1 $15 27. c4
Rb2+ 28. Kc3 Re2) 27. f3 $1 $11 {[%emt 0:00:42]} Rb8 {[%emt 0:02:35]} 28. e4 {
[%emt 0:00:36]} Be6 $132 {[%emt 0:00:11] Black is not keeping still} 29. Nf4 {
[%emt 0:00:27]} (29. Nb4 $11 Bc4 30. Rf2) 29... Rb2+ {[%emt 0:02:56]} 30. Ke3 {
[%emt 0:00:06] Threatens to win with d5.} Bxa2 {[%emt 0:02:35]} (30... h2 $15 {
stays ahead.}) 31. Nd3 $16 {[%emt 0:01:07]} Rg2 {[%emt 0:00:36] [#]} 32. Rh1 {
[%emt 0:00:45]} (32. Rf2 $1 $16 Rxf2 33. Nxf2 (33. Kxf2 h2 $11)) 32... h2 $11 {
[%emt 0:00:48]} 33. Nf2 {[%emt 0:00:45]} Bb3 {[%emt 0:01:38]} 34. Rxa7 {
[%emt 0:00:31]} Rc6 {[%emt 0:00:10]} (34... f6 $11) 35. Ng4 $1 $14 {[%emt 0:00:
00] And now Ne5+ would win.} Rxc3+ {[%emt 0:00:56]} 36. Kf4 {[%emt 0:00:06]}
Rcc2 {[%emt 0:00:28]} 37. Ne3 {[%emt 0:00:47]} ({White should try} 37. Raa1 $14
Rb2 38. d5) 37... Rg1 $11 {[%emt 0:00:05] The position is equal.} 38. Ra1 {
[%emt 0:00:04]} Rxa1 {[%emt 0:01:04]} 39. Rxa1 {[%emt 0:00:04] Endgame KRB-KRN}
Rd2 {[%emt 0:00:38]} 40. Rh1 {[%emt 0:00:13] Prevents Rd1.} Rxd4 {[%emt 0:00:
57]} 41. Rxh2 {[%emt 0:30:06]} c5 {[%emt 0:30:36][%cal Yc7c5,Yc5c4,Yc4d3]} 42.
Rh5 {[%emt 0:00:00]} Kc6 {[%emt 0:00:00]} 43. Rh6+ {[%emt 0:00:00]} Kb5 {
[%emt 0:00:00]} 44. Rh8 {[%emt 0:00:00]} Be6 {[%emt 0:00:00]} 45. Rb8+ {
[%emt 0:00:00]} Kc6 {[%emt 0:00:00]} 46. Rb1 {[%emt 0:00:00]} c4 {[%emt 0:00:
00]} 47. Rd1 {[%emt 0:00:00]} Kc5 {[%emt 0:00:00] aiming for ... Rxd1.} 48. Ke5
{[%emt 0:00:00]} Rd3 {[%emt 0:00:00]} 49. Rxd3 {[%emt 0:00:00]} cxd3 {[%emt 0:
00:00] KB-KN} 50. Nf1 {[%emt 0:00:00]} Kc4 {[%emt 0:00:00]} (50... Bh3 $5 51.
Nd2 Be6 $15) 51. Kf4 {[%emt 0:00:00]} Kd4 {[%emt 0:00:00]} 52. Nd2 {[%emt 0:00:
00]} Bh3 {[%emt 0:00:00]} 53. Nb1 {[%emt 0:00:00]} Bd7 {[%emt 0:00:00]} 54. Nd2
{[%emt 0:00:00]} Ba4 {[%emt 0:00:00]} 55. Nf1 {[%emt 0:00:00]} Bb5 {[%emt 0:00:
00]} 56. Nd2 {[%emt 0:00:00]} Bd7 {[%emt 0:00:00]} 57. Nf1 {[%emt 0:00:00]} f6
{[%emt 0:00:00]} 58. Nd2 {[%emt 0:00:14]} Be6 {[%emt 0:00:00]} 59. Nf1 {
[%emt 0:00:40] Weighted Error Value: White=0.18 (very precise) /Black=0.18 
(very precise)} 1/2-1/2

[Event "44th Chess Olympiad Open 2022"]
[Site "Chennai"]
[Date "2022.08.06"]
[Round "8.8"]
[White "Vera Siguenas, Deivy"]
[Black "Karthikeyan, Murali"]
[Result "1/2-1/2"]
[WhiteElo "2503"]
[BlackElo "2613"]
[Annotator "TA"]
[PlyCount "84"]
[EventDate "2022.??.??"]
[TimeControl "60"]

{[%evp 15,84,0,15,0,17,13,18,14,12,9,14,26,36,29,21,32,90,95,92,71,89,87,79,86,
97,85,87,83,90,64,79,85,84,0,0,0,0,0,0,0,0,0,0,0,0,0,0,0,0,0,0,0,0,0,0,0,0,0,0,
0,0,0,0,0,0,0,8,8,8,8,8]} 1. d4 {[%emt 0:00:03]} Nf6 {[%emt 0:00:08]} 2. c4 {
[%emt 0:00:05]} e6 {[%emt 0:00:05]} 3. Nc3 {[%emt 0:00:11]} Bb4 {[%emt 0:00:06]
} 4. e3 {[%emt 0:01:17]} O-O {[%emt 0:00:09]} 5. Bd3 {[%emt 0:00:26]} d5 {
[%emt 0:00:07]} 6. Nf3 {[%emt 0:00:32]} dxc4 {[%emt 0:00:10]} 7. Bxc4 {[%emt 0:
00:00]} c5 {[%emt 0:00:05]} 8. O-O {[%emt 0:02:07]} Nc6 {[%emt 0:00:04]} 9. Bd3
{[%emt 0:03:41] E54: Nimzo-Indian: Rubinstein: Main Line: 7...dxc4 8 Bxc4.} h6
{[%emt 0:00:38] 9...Qe7 is not played anymore.} 10. dxc5 {[%emt 0:19:44]} Bxc5
{[%emt 0:16:36]} 11. a3 {[%emt 0:01:16]} Bd6 {[%emt 0:06:43] [#]} 12. Ne4 $146
{[%emt 0:02:14]} ({Predecessor:} 12. b4 Ne5 13. Nxe5 Bxe5 14. Bb2 Nd5 15. Qd2
b6 16. Nxd5 Qxd5 17. Rad1 Bb7 18. f4 Bxb2 19. Qxb2 {½-½ (61) Jones,G (2660)
-Cornette,M (2606) Porticcio 2017}) 12... Nxe4 {[%emt 0:17:11]} 13. Bxe4 {
[%emt 0:00:09]} Ne5 {[%emt 0:01:03]} 14. Bd2 {[%emt 0:34:51]} f5 {[%emt 0:00:
00]} 15. Bc3 {[%emt 0:02:17]} Qc7 {[%emt 0:10:26]} (15... fxe4 $14 16. Nxe5
Bxe5 17. Bxe5 Qd5) 16. Bxe5 $16 {[%emt 0:06:44]} Bxe5 {[%emt 0:00:07]} 17. Rc1
{[%emt 0:12:46]} Qd6 {[%emt 0:01:53]} 18. Nxe5 {[%emt 0:00:11]} Qxe5 {[%emt 0:
00:00]} 19. Bf3 {[%emt 0:00:09]} Rb8 {[%emt 0:03:11]} 20. Qa4 {[%emt 0:02:55]}
a5 {[%emt 0:00:42]} 21. Rfd1 {[%emt 0:00:36]} b6 {[%emt 0:00:45]} 22. Qd4 {
[%emt 0:01:36] White is more active.} Qxd4 {[%emt 0:00:15]} 23. Rxd4 {[%emt 0:
00:00]} Bb7 {[%emt 0:02:12]} 24. Rc7 {[%emt 0:04:12]} (24. Bxb7 $16 Rxb7 25.
Rc6) 24... Rfc8 $1 $11 {[%emt 0:00:31] The position is equal.} 25. Rdd7 {
[%emt 0:00:22]} Rxc7 {[%emt 0:00:05]} 26. Rxc7 {[%emt 0:00:03]} Rc8 {[%emt 0:
00:00]} 27. Rxc8+ {[%emt 0:00:10]} Bxc8 {[%emt 0:00:05] Endgame KB-KB} 28. Kf1
{[%emt 0:01:06]} Kf7 {[%emt 0:00:50]} 29. Ke1 {[%emt 0:00:06]} Kf6 {[%emt 0:02:
02]} 30. Kd2 {[%emt 0:00:29]} g5 {[%emt 0:00:36]} 31. Kc3 {[%emt 0:00:42]} Ke5
{[%emt 0:02:09]} 32. Ba8 {[%emt 0:01:20]} Ba6 {[%emt 0:00:00]} 33. b4 {[%emt 0:
01:19]} f4 {[%emt 0:01:52]} 34. exf4+ {[%emt 0:00:27]} Kxf4 {[%emt 0:01:10]}
35. bxa5 {[%emt 0:00:23]} bxa5 {[%emt 0:00:02]} 36. g3+ {[%emt 0:02:27]} Kg4 {
[%emt 0:00:28]} 37. Bg2 {[%emt 0:00:11] Inhibits Bf1. Threatens to win with
Kd4.} e5 {[%emt 0:00:20]} 38. Kd2 {[%emt 0:00:47]} Kf5 {[%emt 0:01:58]} 39. Bd5
{[%emt 0:00:06]} Bf1 {[%emt 0:00:26]} 40. Ke3 {[%emt 0:00:00]} h5 {[%emt 0:01:
34]} 41. Be4+ {[%emt 0:31:17]} Kf6 $1 {[%emt 0:30:59]} 42. h4 {[%emt 0:00:19]}
gxh4 {[%emt 0:00:21] Weighted Error Value: White=0.06 (flawless) /Black=0.05 
(flawless)} 1/2-1/2

[Event "44th Chess Olympiad Open 2022"]
[Site "Chennai"]
[Date "2022.08.06"]
[Round "8.9"]
[White "Brkic, Ante"]
[Black "Juksta, Karolis"]
[Result "1-0"]
[WhiteElo "2611"]
[BlackElo "2412"]
[Annotator "TA"]
[PlyCount "63"]
[EventDate "2022.??.??"]
[TimeControl "60"]

{[%evp 12,63,28,17,29,40,41,33,35,23,55,60,114,113,165,168,167,152,156,152,166,
156,175,170,174,181,186,193,189,192,209,202,232,193,270,268,266,275,271,269,
271,278,276,256,256,267,320,308,519,505,676,648,602,572]} 1. e4 {[%emt 0:00:02]
} e6 {[%emt 0:00:08]} 2. d4 {[%emt 0:00:08]} d5 {[%emt 0:00:05]} 3. Nc3 {
[%emt 0:00:06]} dxe4 {[%emt 0:00:12]} 4. Nxe4 {[%emt 0:00:06]} Nd7 {[%emt 0:00:
00]} 5. Nf3 {[%emt 0:00:20]} Ngf6 {[%emt 0:08:10]} 6. Bg5 {[%emt 0:10:38]} h6 {
[%emt 0:00:00]} 7. Bh4 {[%emt 0:00:20]} c5 {[%emt 0:00:00] C13: French:
Classical System: 4 Bg5 Be7, Alekhine-Chatard Attack.} 8. c3 {[%emt 0:05:34]}
Be7 {[%emt 0:04:25]} 9. Bxf6 {[%emt 0:05:06] [#]} gxf6 $146 {[%emt 0:02:35]
White is slightly better.} ({Predecessor:} 9... Bxf6 10. dxc5 O-O 11. Nxf6+
Qxf6 12. Qd6 Qf5 13. b4 Qe4+ 14. Kd2 Qg6 15. Bd3 Qf6 {1-0 (65) Hector,J (2550)
-Koch,M (2251) Nuremberg 2007}) 10. d5 {[%emt 0:18:29] aiming for dxe6.} exd5 {
[%emt 0:33:40]} 11. Qxd5 {[%emt 0:00:28] Threatens to win with 0-0-0.} Nb6 {
[%emt 0:01:08] [#]} ({Black should try} 11... Qc7 $1 $14) 12. Bb5+ $1 $40 {
[%emt 0:07:56] Black is in trouble.} Kf8 {[%emt 0:09:13]} (12... Bd7 $16 13.
Bxd7+ Qxd7 14. Qxd7+ Kxd7) 13. Qxd8+ $18 {[%emt 0:00:24]} Bxd8 {[%emt 0:00:04]}
14. Nxc5 {[%emt 0:00:16][%cal Ye4c5,Yc5b3,Yb3d4]} Rg8 {[%emt 0:02:35]} 15. g3 {
[%emt 0:08:20] White is much more active.} Be7 {[%emt 0:05:46]} 16. Nb3 {
[%emt 0:00:03]} Be6 {[%emt 0:03:46]} 17. Nbd4 {[%emt 0:16:36]} Bd5 {[%emt 0:00:
43]} 18. a4 {[%emt 0:00:09]} Nc4 {[%emt 0:00:00]} 19. Bxc4 {[%emt 0:03:16]}
Bxc4 {[%emt 0:00:08]} 20. O-O-O {[%emt 0:00:07]} a5 {[%emt 0:07:15]} 21. Rhe1 {
[%emt 0:00:30]} Bc5 {[%emt 0:00:32]} 22. Nh4 {[%emt 0:04:54][%cal Yf3h4,Yh4f5,
Yf5d6,Yd6b7,Yb7a5,Ya5c6] Pair of Knights!} Re8 {[%emt 0:05:16]} (22... Rg5 {
was called for.} 23. Nhf5 Bxd4 24. Nxd4 Re5) 23. Rxe8+ {[%emt 0:02:15]} Kxe8 {
[%emt 0:00:05]} 24. Nhf5 {[%emt 0:00:00]} h5 {[%emt 0:01:47]} 25. f4 {[%emt 0:
04:24]} Be6 {[%emt 0:05:05]} 26. Nxe6 {[%emt 0:01:36]} fxe6 {[%emt 0:00:06]
Endgame KRB-KRN} 27. Nd6+ {[%emt 0:00:06]} Ke7 {[%emt 0:02:52]} 28. Nxb7 {
[%emt 0:00:13]} Be3+ {[%emt 0:00:00]} 29. Kc2 {[%emt 0:00:16]} h4 $2 {[%emt 0:
00:33]} (29... Bb6 {might work better.} 30. Nd6 h4) 30. Nxa5 {[%emt 0:00:42] 
[#] Hoping for Nc6+. White is clearly winning.} f5 {[%emt 0:00:49]} 31. Nc6+ {
[%emt 0:01:49]} Kf6 {[%emt 0:00:00]} 32. a5 {[%emt 0:00:49] Black got
outplayed after the opening. Weighted Error Value: White=0.02 (flawless) /
Black=0.36} 1-0

[Event "44th Chess Olympiad Open 2022"]
[Site "Chennai"]
[Date "2022.08.06"]
[Round "8.9"]
[White "Bosiocic, Marin"]
[Black "Kazakouski, Valery"]
[Result "0-1"]
[WhiteElo "2549"]
[BlackElo "2528"]
[Annotator "RC"]
[PlyCount "132"]
[EventDate "2022.??.??"]
[TimeControl "60"]

1. Nf3 {[%emt 0:00:09]} d5 {[%emt 0:00:26]} 2. g3 {[%emt 0:00:09]} Nd7 {
[%emt 0:00:22]} 3. d4 {[%emt 0:00:20]} Nb6 {[%emt 0:00:12]} 4. Nbd2 {[%emt 0:
00:00]} Bf5 {[%emt 0:00:24]} 5. Bg2 {[%emt 0:00:51]} e6 {[%emt 0:00:45]} 6. O-O
{[%emt 0:01:02]} Nf6 {[%emt 0:01:49]} 7. Nh4 {[%emt 0:04:11]} c6 {[%emt 0:00:
00]} 8. f3 {[%emt 0:07:08]} Be7 {[%emt 0:11:32]} 9. c3 {[%emt 0:00:13]} Bg6 {
[%emt 0:05:53]} 10. Nxg6 {[%emt 0:02:27]} hxg6 {[%emt 0:00:26]} 11. e4 {
[%emt 0:00:26]} c5 {[%emt 0:14:32]} 12. e5 {[%emt 0:01:53]} Nfd7 {[%emt 0:00:
00]} 13. f4 {[%emt 0:01:38]} Rc8 {[%emt 0:03:58]} 14. g4 {[%emt 0:03:21]} cxd4
{[%emt 0:06:35]} 15. cxd4 {[%emt 0:00:19]} Qc7 {[%emt 0:00:20]} 16. Qf3 {
[%emt 0:04:10]} f5 {[%emt 0:07:44]} 17. exf6 {[%emt 0:02:54]} gxf6 {[%emt 0:00:
00]} 18. Qe2 {[%emt 0:00:21]} Qd6 {[%emt 0:09:43]} 19. Nf3 {[%emt 0:01:25]} f5
{[%emt 0:03:01]} 20. a4 {[%emt 0:05:49]} Nf6 {[%emt 0:06:30]} 21. a5 {[%emt 0:
00:00]} Nbd7 {[%emt 0:01:31]} 22. a6 {[%emt 0:00:14]} b6 {[%emt 0:01:31]} 23.
Be3 {[%emt 0:02:10]} Nxg4 {[%emt 0:04:16]} 24. Rac1 {[%emt 0:00:10]} Kf7 {
[%emt 0:03:03]} 25. Bd2 {[%emt 0:00:50]} Kg7 {[%emt 0:02:18]} 26. Rfe1 {
[%emt 0:01:19]} Ngf6 {[%emt 0:05:16]} 27. Qxe6 {[%emt 0:03:38]} Rxc1 {[%emt 0:
00:00]} 28. Bxc1 {[%emt 0:00:11]} Ne4 {[%emt 0:00:15]} 29. Ng5 {[%emt 0:02:45]}
Qxe6 {[%emt 0:02:28]} 30. Nxe6+ {[%emt 0:00:11]} Kf7 {[%emt 0:00:17]} 31. Nc7 {
[%emt 0:01:19]} Bh4 {[%emt 0:01:36]} 32. Bxe4 {[%emt 0:04:47]} dxe4 {[%emt 0:
00:00]} 33. Rd1 {[%emt 0:00:07]} Nb8 {[%emt 0:01:24]} 34. Bd2 {[%emt 0:02:53]}
Rd8 {[%emt 0:00:44]} 35. Nb5 {[%emt 0:12:04]} Nxa6 {[%emt 0:00:36]} 36. Ra1 {
[%emt 0:00:17]} Nb8 {[%emt 0:01:13]} 37. Rxa7+ {[%emt 0:00:05]} Rd7 {[%emt 0:
00:00]} 38. Ra4 {[%emt 0:03:04]} Nc6 {[%emt 0:00:50]} 39. Rc4 {[%emt 0:00:09]}
Ne7 {[%emt 0:00:31]} 40. Bb4 {[%emt 0:00:50]} Nd5 {[%emt 0:00:41]} 41. Bd6 {
[%emt 0:30:14]} g5 {[%emt 0:31:35]} 42. fxg5 {[%emt 0:02:54]} f4 {[%emt 0:00:
00]} 43. Rc6 {[%emt 0:00:00]} f3 {[%emt 0:00:00]} 44. g6+ {[%emt 0:02:14]} Kxg6
{[%emt 0:00:00]} 45. Bg3+ {[%emt 0:00:05]} Kh5 {[%emt 0:00:00]} 46. Re6 {
[%emt 0:03:13]} Bxg3 {[%emt 0:00:00]} 47. hxg3 {[%emt 0:00:07]} e3 {[%emt 0:00:
00]} 48. Nc3 {[%emt 0:00:31]} Kg4 {[%emt 0:00:00]} 49. Nxd5 {[%emt 0:15:16]}
Rxd5 {[%emt 0:00:00]} 50. Rxe3 {[%emt 0:05:47]} Rxd4 {[%emt 0:00:00]} 51. Re8 {
[%emt 0:01:16]} Rd1+ {[%emt 0:00:00]} 52. Kf2 {[%emt 0:00:17]} Rd2+ {[%emt 0:
00:00]} 53. Kf1 {[%emt 0:00:13]} Rxb2 {[%emt 0:00:00]} 54. Rg8+ {[%emt 0:00:04]
} Kh3 {[%emt 0:00:00]} 55. Rh8+ {[%emt 0:01:55]} Kxg3 {[%emt 0:00:00]} 56. Rg8+
{[%emt 0:00:03]} Kf4 {[%emt 0:00:00]} 57. Re8 {[%emt 0:01:04]} b5 {[%emt 0:00:
00]} 58. Re7 {[%emt 0:00:30]} b4 {[%emt 0:00:00]} 59. Re8 {[%emt 0:00:21]} b3 {
[%emt 0:00:00]} 60. Rf8+ {[%emt 0:00:29]} Ke3 {[%emt 0:00:00]} 61. Re8+ {
[%emt 0:00:03]} Kd3 {[%emt 0:00:00]} 62. Rd8+ {[%emt 0:00:04]} Kc2 {[%emt 0:00:
00]} 63. Rc8+ {[%emt 0:00:03]} Kd1 {[%emt 0:00:00]} 64. Rb8 {[%emt 0:01:45]}
Rb1 {[%emt 0:00:00]} 65. Kf2 {[%emt 0:00:42]} Kc2 {[%emt 0:00:00]} 66. Kxf3 {
[%emt 0:00:13]} Re1 {[%emt 0:00:13]} 0-1

[Event "44th Chess Olympiad Open 2022"]
[Site "Chennai"]
[Date "2022.08.06"]
[Round "8.9"]
[White "Pultinevicius, Paulius"]
[Black "Kozul, Zdenko"]
[Result "1-0"]
[WhiteElo "2539"]
[BlackElo "2602"]
[Annotator "TA"]
[PlyCount "103"]
[EventDate "2022.??.??"]
[TimeControl "60"]

{[%evp 16,103,61,50,39,37,58,51,42,49,51,48,35,34,33,18,18,12,111,108,112,114,
111,111,112,-405,87,50,81,77,76,79,75,70,81,62,141,134,152,152,160,151,148,126,
259,250,281,197,178,169,143,162,214,202,227,229,373,343,321,0,196,209,231,218,
230,168,162,157,154,168,166,120,132,131,210,222,1123,1040,1189,1374,1112,908,
1867,1598,889,777,803,675,29987,29988]} 1. d4 {[%emt 0:00:03]} Nf6 {[%emt 0:00:
00]} 2. c4 {[%emt 0:00:05]} g6 {[%emt 0:00:15]} 3. Nc3 {[%emt 0:00:05]} Bg7 {
[%emt 0:00:06]} 4. e4 {[%emt 0:00:05]} d6 {[%emt 0:00:06]} 5. Nf3 {[%emt 0:00:
00]} O-O {[%emt 0:00:17]} 6. Be2 {[%emt 0:00:04]} Na6 {[%emt 0:04:50]} 7. O-O {
[%emt 0:02:31]} e5 {[%emt 0:00:14]} 8. Re1 {[%emt 0:04:32]} c6 {[%emt 0:00:22]}
9. d5 {[%emt 0:01:57]} (9. Be3 $5 {[%cal Rd4e5]}) 9... Nc5 {[%emt 0:01:04] E94:
King's Indian: Classical: 6 Be2 e5 7 0-0: Various Black 7th moves.} 10. Qc2 {
[%emt 0:02:11]} a5 {[%emt 0:16:18]} 11. Bg5 {[%emt 0:11:20]} Bd7 {[%emt 0:00:
00] White is slightly better.} 12. Nd2 {[%emt 0:14:04] [#]} Qc7 $146 {[%emt 0:
00:00]} ({Predecessor:} 12... Qb8 13. Nb3 Nxb3 14. axb3 h6 15. Be3 Qc7 16. Qd2
Kh7 17. h3 c5 18. f4 exf4 19. Bxf4 {½-½ (64) Zilberman,Y (2452)-Seeman,T 
(2412) Moscow 2006}) 13. Nb3 {[%emt 0:17:34]} Na6 {[%emt 0:02:17]} 14. Rad1 {
[%emt 0:09:12]} a4 {[%emt 0:05:35] aiming for ...Nb4.} 15. Nc1 {[%emt 0:07:21]}
cxd5 {[%emt 0:05:48]} (15... Nc5 {is more complex.} 16. Bf1 h6 17. Bxf6 Bxf6
18. Nd3 Nxd3 19. Rxd3 c5) 16. Bxf6 {[%emt 0:03:25]} (16. Nxd5 Nxd5 17. exd5 b5
$17) (16. cxd5 b5 $11) 16... Nb4 {[%emt 0:00:18]} (16... Bxf6 $11 17. Nxd5 Qd8)
17. Nxd5 $16 {[%emt 0:04:29]} Nxc2 {[%emt 0:07:07]} 18. Nxc7 {[%emt 0:00:06]
Pair of Knights!} Bxf6 {[%emt 0:01:22]} 19. Nxa8 {[%emt 0:00:08]} Rxa8 {
[%emt 0:00:16]} (19... Nxe1 $2 20. Nb6 (20. Rxd6 Bc6 $14) 20... Bc6 21. Rxe1
$18) 20. Rd3 $2 {[%emt 0:11:02]} d5 $2 ({Better is} 20... Nxe1 $19 21. Rxd6 Be6
) 21. Rxd5 {[%emt 0:00:30]} Nxe1 {[%emt 0:00:52]} 22. Rxd7 {[%emt 0:00:45]} Bg5
{[%emt 0:09:15]} 23. Rd1 {[%emt 0:00:40]} Nc2 {[%emt 0:00:00]} 24. Nd3 {
[%emt 0:00:06]} f6 {[%emt 0:04:47]} 25. Bg4 {[%emt 0:02:29]} h5 {[%emt 0:04:51]
} ({Black should try} 25... Kf7 $14) 26. Be6+ {[%emt 0:00:14]} Kf8 {[%emt 0:00:
06]} 27. Bd5 {[%emt 0:00:25]} Ra7 {[%emt 0:00:31]} 28. g3 {[%emt 0:01:05]} Bh6
{[%emt 0:00:27]} 29. f4 {[%emt 0:01:20]} a3 {[%emt 0:06:28]} (29... exf4 $16
30. gxf4 (30. Nxf4 Bxf4 31. gxf4 Nb4 $16) 30... g5) 30. b4 $18 {[%emt 0:00:56]}
(30. fxe5 axb2 31. c5 (31. Nxb2 Rxa2 32. Nd3 Ne3 $11) 31... Bc1 32. Nxb2 Bxb2
$14) 30... b6 {[%emt 0:00:17]} 31. Rd2 {[%emt 0:02:22]} ({Don't take} 31. fxe5
$6 Be3+ 32. Kf1 Bd4 $16) 31... Nd4 {[%emt 0:00:39] And now ...Nf3+ would win.}
32. Rf2 {[%emt 0:00:58] Prevents Nf3+.} exf4 {[%emt 0:00:00]} 33. gxf4 {
[%emt 0:00:19]} ({Much weaker is} 33. Nxf4 $6 Bxf4 34. gxf4 Ra4 $11) 33... Rg7
{[%emt 0:00:11]} (33... Ke7 {might work better.} 34. Rg2 g5) 34. h4 {[%emt 0:
01:45]} Ke8 {[%emt 0:02:44]} 35. Kf1 {[%emt 0:00:12]} Rc7 {[%emt 0:01:10]} (
35... Ke7 $142 36. c5 b5) 36. Rg2 {[%emt 0:00:52]} Rg7 {[%emt 0:01:02]} 37. Rf2
$2 {[%emt 0:00:20]} ({White should play} 37. b5 $18) 37... Re7 $2 {[%emt 0:00:
56]} (37... Rc7 $1 $11) 38. Kg2 {[%emt 0:02:36]} Bf8 {[%emt 0:00:36]} 39. Rd2 {
[%emt 0:00:34] Black must now prevent c5.} Rc7 {[%emt 0:00:05]} 40. Kf2 {
[%emt 0:00:38]} Nc6 {[%emt 0:00:51]} 41. Bxc6+ {[%emt 0:30:49]} Rxc6 {[%emt 0:
30:04] Endgame [#] KRB-KRN} 42. Rc2 {[%emt 0:00:12]} f5 {[%emt 0:00:00]} 43.
Ne5 {[%emt 0:00:00]} (43. Ke3 $18) 43... Re6 $16 {[%emt 0:00:00]} 44. c5 {
[%emt 0:00:00]} bxc5 {[%emt 0:00:00]} (44... Bg7 $16 {was called for.}) 45.
bxc5 $18 {[%emt 0:00:00][%cal Yb4c5,Yc5c6,Yc6c7]} Bg7 $2 {[%emt 0:00:00]} (
45... Kd8 46. exf5 gxf5) 46. c6 {[%emt 0:00:00] Intending c7 and mate.} Bxe5 {
[%emt 0:00:00]} 47. fxe5 {[%emt 0:00:00][%cal Yf4e5,Ye5e6] White threatens c7
and mate. KR-KR} Kd8 {[%emt 0:00:00]} 48. Rc5 {[%emt 0:00:00]} fxe4 {[%emt 0:
00:00] [#]} 49. c7+ $1 {[%emt 0:00:00]} ({Less strong is} 49. Ke3 Kc7 $16)
49... Kc8 {[%emt 0:00:00]} 50. Ke3 {[%emt 0:00:00]} Rb6 {[%emt 0:00:00]} 51.
Rc4 {[%emt 0:00:42]} Rb7 {[%emt 0:00:00]} 52. e6 {[%emt 0:00:36] Weighted
Error Value: White=0.36/ Black=0.64} 1-0